[Event "Early-Titled-Tuesday-Blitz-March-19-2024"]
[Site "Chess.com"]
[Date "2024.03.19"]
[Round "5"]
[White "aistrel"]
[Black "DucksParadise"]
[Result "0-1"]
[WhiteElo "2650"]
[BlackElo "2521"]
[TimeControl "180+1"]
[EndTime "8:55:50 PDT"]
[Termination "DucksParadise won by resignation"]

1. d4 {[%clk 0:03:00.9]} 1... f5 {[%clk 0:02:56]} 2. Nc3 {[%clk 0:03:00]} 2...
Nf6 {[%clk 0:02:54.7]} 3. Bf4 {[%clk 0:02:59]} 3... e6 {[%clk 0:02:41.4]} 4. f3
{[%clk 0:02:58.3]} 4... Bb4 {[%clk 0:02:38.3]} 5. Qd2 {[%clk 0:02:51.2]} 5...
O-O {[%clk 0:02:35.8]} 6. a3 {[%clk 0:02:51.5]} 6... Ba5 {[%clk 0:02:35.7]} 7.
e3 {[%clk 0:02:50.5]} 7... Nd5 {[%clk 0:02:27.9]} 8. b4 {[%clk 0:02:45.8]} 8...
Nxf4 {[%clk 0:02:26.6]} 9. exf4 {[%clk 0:02:41.4]} 9... Bb6 {[%clk 0:02:25.5]}
10. Bd3 {[%clk 0:02:29.1]} 10... Bxd4 {[%clk 0:02:18.6]} 11. Nge2 {[%clk
0:02:29.7]} 11... Bb6 {[%clk 0:02:15.1]} 12. Na4 {[%clk 0:02:28.7]} 12... Qf6
{[%clk 0:02:10.2]} 13. c3 {[%clk 0:02:23.7]} 13... e5 {[%clk 0:01:54.1]} 14.
Nxb6 {[%clk 0:02:19]} 14... axb6 {[%clk 0:01:54]} 15. O-O {[%clk 0:02:18.9]}
15... d6 {[%clk 0:01:48.9]} 16. fxe5 {[%clk 0:02:15.2]} 16... dxe5 {[%clk
0:01:47.6]} 17. f4 {[%clk 0:02:04.1]} 17... e4 {[%clk 0:01:44.8]} 18. Bc4+
{[%clk 0:02:04.3]} 18... Be6 {[%clk 0:01:44.7]} 19. Bxe6+ {[%clk 0:02:04.9]}
19... Qxe6 {[%clk 0:01:45.6]} 20. Nd4 {[%clk 0:02:05.8]} 20... Qd5 {[%clk
0:01:39.9]} 21. Qe3 {[%clk 0:02:02.6]} 21... Nc6 {[%clk 0:01:36.7]} 22. Rfd1
{[%clk 0:02:00.2]} 22... Nxd4 {[%clk 0:01:35]} 23. Rxd4 {[%clk 0:02:01.1]} 23...
Qe6 {[%clk 0:01:34]} 24. a4 {[%clk 0:02:00.4]} 24... c5 {[%clk 0:01:27.8]} 25.
Rd2 {[%clk 0:01:56.6]} 25... Rfd8 {[%clk 0:01:12.8]} 26. h3 {[%clk 0:01:52.2]}
26... Rxd2 {[%clk 0:01:09.6]} 27. Qxd2 {[%clk 0:01:53.1]} 27... h6 {[%clk
0:01:07.2]} 28. Kh2 {[%clk 0:01:52.8]} 28... Kh7 {[%clk 0:01:06.7]} 29. a5
{[%clk 0:01:48.9]} 29... bxa5 {[%clk 0:01:01.8]} 30. bxa5 {[%clk 0:01:49.8]}
30... e3 {[%clk 0:00:59.4]} 31. Qe2 {[%clk 0:01:45.9]} 31... Re8 {[%clk
0:00:50.7]} 32. Qb5 {[%clk 0:01:45.8]} 32... e2 {[%clk 0:00:44]} 33. Re1 {[%clk
0:01:36.8]} 33... Qe3 {[%clk 0:00:36.5]} 34. Kh1 {[%clk 0:01:37.2]} 34... Qf2
{[%clk 0:00:30.7]} 35. Qb1 {[%clk 0:01:20.6]} 35... Qxf4 {[%clk 0:00:26.2]} 36.
Qxb7 {[%clk 0:01:20.6]} 36... Qf1+ {[%clk 0:00:24.3]} 0-1

[Event "Early-Titled-Tuesday-Blitz-March-19-2024"]
[Site "Chess.com"]
[Date "2024.03.19"]
[Round "5"]
[White "LornerAcosta"]
[Black "Sattarov_Bobur"]
[Result "0-1"]
[WhiteElo "2610"]
[BlackElo "2832"]
[TimeControl "180+1"]
[EndTime "8:55:51 PDT"]
[Termination "Sattarov_Bobur won by resignation"]

1. Nf3 {[%clk 0:02:59.7]} 1... Nf6 {[%clk 0:03:00]} 2. d4 {[%clk 0:02:58.1]}
2... c5 {[%clk 0:02:59.5]} 3. e3 {[%clk 0:02:53.7]} 3... g6 {[%clk 0:02:59.3]}
4. Be2 {[%clk 0:02:44.4]} 4... Bg7 {[%clk 0:02:59.1]} 5. O-O {[%clk 0:02:45.3]}
5... b6 {[%clk 0:02:58.9]} 6. b3 {[%clk 0:02:45.3]} 6... O-O {[%clk 0:02:57.9]}
7. Bb2 {[%clk 0:02:45.1]} 7... Bb7 {[%clk 0:02:58.1]} 8. c4 {[%clk 0:02:43.4]}
8... cxd4 {[%clk 0:02:54.9]} 9. Nxd4 {[%clk 0:02:43]} 9... Nc6 {[%clk
0:02:51.9]} 10. Nc3 {[%clk 0:02:41.5]} 10... Nxd4 {[%clk 0:02:49.4]} 11. Qxd4
{[%clk 0:02:39.4]} 11... Rc8 {[%clk 0:02:39]} 12. Rfd1 {[%clk 0:02:29.1]} 12...
d6 {[%clk 0:02:29.7]} 13. Rac1 {[%clk 0:02:13.1]} 13... Qd7 {[%clk 0:02:22]} 14.
h3 {[%clk 0:02:08.3]} 14... Ne4 {[%clk 0:02:05]} 15. Qd3 {[%clk 0:01:57.7]}
15... Ng5 {[%clk 0:02:03.8]} 16. Bf1 {[%clk 0:01:11.2]} 16... Rc5 {[%clk
0:02:02.7]} 17. Na4 {[%clk 0:00:59.7]} 17... Bxb2 {[%clk 0:01:54.4]} 18. Nxc5
{[%clk 0:00:41.2]} 18... bxc5 {[%clk 0:01:49]} 19. Rc2 {[%clk 0:00:11.7]} 19...
Be4 {[%clk 0:01:45.5]} 20. Qd2 {[%clk 0:00:11.4]} 20... Bxc2 {[%clk 0:01:44.4]}
21. Qxc2 {[%clk 0:00:12.3]} 21... Bg7 {[%clk 0:01:44]} 22. Kh2 {[%clk
0:00:11.3]} 22... Qb7 {[%clk 0:01:39.7]} 23. Be2 {[%clk 0:00:09]} 23... Qe4
{[%clk 0:01:36.3]} 24. Bd3 {[%clk 0:00:09.2]} 24... Qh4 {[%clk 0:01:31.7]} 25.
Bf1 {[%clk 0:00:07.6]} 25... Ne4 {[%clk 0:01:21.6]} 26. g3 {[%clk 0:00:06]}
26... Qh5 {[%clk 0:01:21.8]} 27. Bg2 {[%clk 0:00:05.6]} 27... Nxf2 {[%clk
0:01:18.4]} 0-1

[Event "Early-Titled-Tuesday-Blitz-March-19-2024"]
[Site "Chess.com"]
[Date "2024.03.19"]
[Round "5"]
[White "stepanosinovsky"]
[Black "Dewarfd"]
[Result "1-0"]
[WhiteElo "2360"]
[BlackElo "2077"]
[TimeControl "180+1"]
[EndTime "8:55:53 PDT"]
[Termination "stepanosinovsky won on time"]

1. e4 {[%clk 0:03:00.9]} 1... c5 {[%clk 0:02:51.5]} 2. Nf3 {[%clk 0:02:50.2]}
2... g6 {[%clk 0:02:50.1]} 3. Nc3 {[%clk 0:02:48.4]} 3... Bg7 {[%clk 0:02:40.2]}
4. g3 {[%clk 0:02:49.3]} 4... Nc6 {[%clk 0:02:35.6]} 5. Bg2 {[%clk 0:02:47.9]}
5... Nf6 {[%clk 0:02:32.9]} 6. O-O {[%clk 0:02:44.6]} 6... O-O {[%clk
0:02:27.9]} 7. Re1 {[%clk 0:02:44]} 7... d5 {[%clk 0:02:18.5]} 8. d3 {[%clk
0:02:44.9]} 8... dxe4 {[%clk 0:02:17.8]} 9. Nxe4 {[%clk 0:02:41.9]} 9... Nxe4
{[%clk 0:02:14]} 10. Rxe4 {[%clk 0:02:38.8]} 10... b6 {[%clk 0:02:12.5]} 11. Bg5
{[%clk 0:02:32.3]} 11... h6 {[%clk 0:02:04.5]} 12. Bd2 {[%clk 0:02:29.1]} 12...
Bb7 {[%clk 0:02:02.7]} 13. Qe2 {[%clk 0:02:20.3]} 13... e6 {[%clk 0:02:00.5]}
14. Re1 {[%clk 0:02:09.3]} 14... Nd4 {[%clk 0:01:49.6]} 15. Nxd4 {[%clk
0:02:04.3]} 15... Bxe4 {[%clk 0:01:29.9]} 16. Nxe6 {[%clk 0:02:00.1]} 16... Qe7
{[%clk 0:00:59.8]} 17. Nxg7 {[%clk 0:01:57.4]} 17... Kxg7 {[%clk 0:00:53.2]} 18.
dxe4 {[%clk 0:01:55.6]} 18... Rad8 {[%clk 0:00:52.1]} 19. Bc3+ {[%clk
0:01:54.8]} 19... Kg8 {[%clk 0:00:52]} 20. Qf3 {[%clk 0:01:53.2]} 20... b5
{[%clk 0:00:46.5]} 21. Bf6 {[%clk 0:01:51.7]} 21... Qe6 {[%clk 0:00:35.1]} 22.
Bxd8 {[%clk 0:01:48.8]} 22... Rxd8 {[%clk 0:00:36]} 23. a3 {[%clk 0:01:40]}
23... Rd2 {[%clk 0:00:16.1]} 24. Rd1 {[%clk 0:01:40.9]} 24... Qd6 {[%clk
0:00:14.4]} 25. Rxd2 {[%clk 0:01:33.3]} 25... Qxd2 {[%clk 0:00:15.3]} 26. Qc3
{[%clk 0:01:33.5]} 26... Qd1+ {[%clk 0:00:08.4]} 27. Bf1 {[%clk 0:01:33.7]}
27... c4 {[%clk 0:00:08.1]} 28. Kg2 {[%clk 0:01:30.3]} 28... h5 {[%clk
0:00:05.2]} 29. h4 {[%clk 0:01:29.3]} 29... a6 {[%clk 0:00:02.2]} 30. b3 {[%clk
0:01:25.3]} 30... cxb3 {[%clk 0:00:01.8]} 31. cxb3 {[%clk 0:01:24.9]} 1-0

[Event "Early-Titled-Tuesday-Blitz-March-19-2024"]
[Site "Chess.com"]
[Date "2024.03.19"]
[Round "5"]
[White "NikitaShnadrygin"]
[Black "DanielTitichoca"]
[Result "0-1"]
[WhiteElo "2687"]
[BlackElo "2478"]
[TimeControl "180+1"]
[EndTime "8:55:55 PDT"]
[Termination "DanielTitichoca won on time"]

1. Nf3 {[%clk 0:03:00.9]} 1... d5 {[%clk 0:02:59]} 2. g3 {[%clk 0:03:00.9]} 2...
g6 {[%clk 0:02:59.1]} 3. d4 {[%clk 0:03:01.3]} 3... Bg7 {[%clk 0:03:00]} 4. Bg2
{[%clk 0:03:02]} 4... Nf6 {[%clk 0:03:00.2]} 5. O-O {[%clk 0:03:02.7]} 5... O-O
{[%clk 0:03:00.9]} 6. b3 {[%clk 0:03:03.4]} 6... a5 {[%clk 0:03:00.3]} 7. Bb2
{[%clk 0:03:03.8]} 7... a4 {[%clk 0:03:00.5]} 8. Nbd2 {[%clk 0:03:04.1]} 8... a3
{[%clk 0:03:00]} 9. Bc3 {[%clk 0:03:04.5]} 9... b6 {[%clk 0:02:57.1]} 10. Rc1
{[%clk 0:03:03.9]} 10... c5 {[%clk 0:02:53.9]} 11. Ba1 {[%clk 0:03:02.5]} 11...
Nc6 {[%clk 0:02:52.8]} 12. dxc5 {[%clk 0:02:41.7]} 12... bxc5 {[%clk 0:02:51.9]}
13. Ne5 {[%clk 0:02:42.4]} 13... Nb4 {[%clk 0:02:51.2]} 14. c3 {[%clk
0:02:42.6]} 14... Na6 {[%clk 0:02:43.5]} 15. c4 {[%clk 0:02:36.5]} 15... Bb7
{[%clk 0:02:40.8]} 16. Nd3 {[%clk 0:02:28.3]} 16... Rc8 {[%clk 0:02:38.9]} 17.
cxd5 {[%clk 0:02:25.4]} 17... Bxd5 {[%clk 0:02:35.7]} 18. Nc4 {[%clk 0:02:20.7]}
18... Bxg2 {[%clk 0:02:35.4]} 19. Kxg2 {[%clk 0:02:21.2]} 19... Qd5+ {[%clk
0:02:35.1]} 20. f3 {[%clk 0:02:17.2]} 20... Nb4 {[%clk 0:02:27.2]} 21. Nb6
{[%clk 0:01:44.6]} 21... Qe6 {[%clk 0:02:04.2]} 22. Nxc8 {[%clk 0:01:39.7]}
22... Nfd5 {[%clk 0:01:57.8]} 23. Qd2 {[%clk 0:00:59.5]} 23... Ne3+ {[%clk
0:01:54.8]} 24. Kg1 {[%clk 0:00:57.8]} 24... Nxf1 {[%clk 0:01:55.2]} 25. Kxf1
{[%clk 0:00:39.1]} 25... Nxd3 {[%clk 0:01:47.6]} 26. Bxg7 {[%clk 0:00:26.6]}
26... Kxg7 {[%clk 0:01:41.6]} 27. Qxd3 {[%clk 0:00:14.8]} 27... Rxc8 {[%clk
0:01:41.8]} 28. Rc4 {[%clk 0:00:12.5]} 28... Rc6 {[%clk 0:01:38.5]} 29. Re4
{[%clk 0:00:08.5]} 29... Qf6 {[%clk 0:01:38.4]} 30. Rc4 {[%clk 0:00:03.6]} 30...
Rd6 {[%clk 0:01:37]} 31. Qc3 {[%clk 0:00:03.1]} 31... Rd1+ {[%clk 0:01:32]} 32.
Kf2 {[%clk 0:00:02.1]} 32... Ra1 {[%clk 0:01:30.7]} 0-1

[Event "Early-Titled-Tuesday-Blitz-March-19-2024"]
[Site "Chess.com"]
[Date "2024.03.19"]
[Round "5"]
[White "tptagain"]
[Black "Makswolf200817"]
[Result "1-0"]
[WhiteElo "2955"]
[BlackElo "2755"]
[TimeControl "180+1"]
[EndTime "8:55:56 PDT"]
[Termination "tptagain won by resignation"]

1. Nf3 {[%clk 0:03:00.9]} 1... d5 {[%clk 0:02:59.7]} 2. e3 {[%clk 0:03:01.1]}
2... Nf6 {[%clk 0:02:58.2]} 3. d4 {[%clk 0:03:01]} 3... e6 {[%clk 0:02:56.7]} 4.
Bd3 {[%clk 0:03:01.1]} 4... b6 {[%clk 0:02:53.5]} 5. O-O {[%clk 0:03:00.5]} 5...
Bb7 {[%clk 0:02:53.7]} 6. c4 {[%clk 0:02:58.4]} 6... Be7 {[%clk 0:02:45.2]} 7.
cxd5 {[%clk 0:02:54.9]} 7... exd5 {[%clk 0:02:42.7]} 8. b3 {[%clk 0:02:55]} 8...
O-O {[%clk 0:02:42]} 9. Ba3 {[%clk 0:02:55.5]} 9... Nbd7 {[%clk 0:02:40.7]} 10.
Bxe7 {[%clk 0:02:54.8]} 10... Qxe7 {[%clk 0:02:41.6]} 11. Nc3 {[%clk 0:02:54]}
11... a6 {[%clk 0:02:40.5]} 12. Qe2 {[%clk 0:02:46.9]} 12... Ne4 {[%clk
0:02:39.7]} 13. Rac1 {[%clk 0:02:44.7]} 13... c5 {[%clk 0:02:36]} 14. Rfd1
{[%clk 0:02:38.6]} 14... Rfe8 {[%clk 0:02:18.5]} 15. Qb2 {[%clk 0:02:28.6]}
15... Rac8 {[%clk 0:02:08]} 16. Bf1 {[%clk 0:02:15.5]} 16... Ndf6 {[%clk
0:01:55.4]} 17. Nxe4 {[%clk 0:02:06.8]} 17... Nxe4 {[%clk 0:01:52.3]} 18. Ne5
{[%clk 0:02:00.5]} 18... b5 {[%clk 0:01:45.8]} 19. f3 {[%clk 0:01:43.6]} 19...
Ng5 {[%clk 0:01:32.9]} 20. f4 {[%clk 0:01:40]} 20... Ne4 {[%clk 0:01:32.4]} 21.
dxc5 {[%clk 0:01:39.7]} 21... Rxc5 {[%clk 0:01:26.8]} 22. Bd3 {[%clk 0:01:24.5]}
22... Rxc1 {[%clk 0:01:16.2]} 23. Rxc1 {[%clk 0:01:08.9]} 23... f6 {[%clk
0:01:03.4]} 24. Nf3 {[%clk 0:01:08.4]} 24... Nc5 {[%clk 0:01:02.5]} 25. Qd4
{[%clk 0:01:09]} 25... Nxd3 {[%clk 0:00:59.6]} 26. Qxd3 {[%clk 0:01:09.9]} 26...
Qxe3+ {[%clk 0:00:59.6]} 27. Qxe3 {[%clk 0:01:10.1]} 27... Rxe3 {[%clk
0:01:00.3]} 28. Rc7 {[%clk 0:01:10.3]} 28... Re2 {[%clk 0:00:23.7]} 29. Rxb7
{[%clk 0:01:10.2]} 29... Rxa2 {[%clk 0:00:24.4]} 30. Nd4 {[%clk 0:01:10.6]}
30... Rd2 {[%clk 0:00:22.1]} 31. Ne6 {[%clk 0:01:07.4]} 31... d4 {[%clk
0:00:22.5]} 32. Rxg7+ {[%clk 0:01:06.2]} 32... Kh8 {[%clk 0:00:22.6]} 33. Rd7
{[%clk 0:01:06.3]} 1-0

[Event "Early-Titled-Tuesday-Blitz-March-19-2024"]
[Site "Chess.com"]
[Date "2024.03.19"]
[Round "5"]
[White "kenta1234"]
[Black "Ginger_GM"]
[Result "1-0"]
[WhiteElo "2821"]
[BlackElo "2594"]
[TimeControl "180+1"]
[EndTime "8:55:58 PDT"]
[Termination "kenta1234 won by resignation"]

1. Nf3 {[%clk 0:03:00.9]} 1... f5 {[%clk 0:02:59.1]} 2. c4 {[%clk 0:03:00.4]}
2... Nf6 {[%clk 0:02:58.8]} 3. Nc3 {[%clk 0:03:00.7]} 3... d6 {[%clk 0:02:59]}
4. g3 {[%clk 0:03:01.1]} 4... e5 {[%clk 0:02:58.8]} 5. Bg2 {[%clk 0:03:00]} 5...
Be7 {[%clk 0:02:58.4]} 6. O-O {[%clk 0:03:00.3]} 6... O-O {[%clk 0:02:58.3]} 7.
d3 {[%clk 0:02:59.7]} 7... Qe8 {[%clk 0:02:55.8]} 8. Rb1 {[%clk 0:02:58.8]} 8...
Qh5 {[%clk 0:02:55.4]} 9. e3 {[%clk 0:02:57.5]} 9... f4 {[%clk 0:02:54.3]} 10.
exf4 {[%clk 0:02:55.9]} 10... Bg4 {[%clk 0:02:54]} 11. h3 {[%clk 0:02:33.9]}
11... Bxh3 {[%clk 0:02:53.5]} 12. Ng5 {[%clk 0:02:26.1]} 12... Bg4 {[%clk
0:02:42.9]} 13. f3 {[%clk 0:02:25.1]} 13... Bd7 {[%clk 0:01:47.2]} 14. f5 {[%clk
0:02:20.1]} 14... Bxf5 {[%clk 0:01:37.9]} 15. g4 {[%clk 0:02:16.3]} 15... Qg6
{[%clk 0:00:23.2]} 16. gxf5 {[%clk 0:02:15.6]} 16... Qxf5 {[%clk 0:00:22.9]} 17.
f4 {[%clk 0:02:09.4]} 17... Nc6 {[%clk 0:00:19.8]} 18. Nd5 {[%clk 0:02:04.6]}
18... Nxd5 {[%clk 0:00:19.4]} 19. Bxd5+ {[%clk 0:02:04.7]} 19... Kh8 {[%clk
0:00:19.9]} 20. Be6 {[%clk 0:01:56.1]} 20... Qg6 {[%clk 0:00:19.3]} 21. f5
{[%clk 0:01:55.4]} 21... Qf6 {[%clk 0:00:16.5]} 22. Qh5 {[%clk 0:01:55]} 22...
h6 {[%clk 0:00:16.5]} 23. Ne4 {[%clk 0:01:50.7]} 23... Qh4 {[%clk 0:00:14.3]}
24. Qxh4 {[%clk 0:01:48.5]} 24... Bxh4 {[%clk 0:00:13.7]} 25. Be3 {[%clk
0:01:49.2]} 25... Ne7 {[%clk 0:00:10.3]} 26. Kh2 {[%clk 0:01:47.6]} 26... Rad8
{[%clk 0:00:07.4]} 27. Kh3 {[%clk 0:01:47.9]} 27... Bf6 {[%clk 0:00:07.4]} 28.
Nxf6 {[%clk 0:01:40.7]} 28... Rxf6 {[%clk 0:00:06.8]} 29. Kg4 {[%clk 0:01:40.5]}
29... Rdf8 {[%clk 0:00:06.2]} 30. d4 {[%clk 0:01:24.5]} 30... g6 {[%clk
0:00:06.1]} 31. Bxh6 {[%clk 0:01:13.8]} 31... g5 {[%clk 0:00:06]} 1-0

[Event "Early-Titled-Tuesday-Blitz-March-19-2024"]
[Site "Chess.com"]
[Date "2024.03.19"]
[Round "5"]
[White "Vse_po_kaify"]
[Black "RantomOpening"]
[Result "1-0"]
[WhiteElo "2465"]
[BlackElo "2597"]
[TimeControl "180+1"]
[EndTime "8:56:00 PDT"]
[Termination "Vse_po_kaify won by resignation"]

1. e4 {[%clk 0:03:00.8]} 1... c5 {[%clk 0:02:58.6]} 2. c4 {[%clk 0:02:59]} 2...
e6 {[%clk 0:02:49.9]} 3. Nc3 {[%clk 0:02:58.5]} 3... Nc6 {[%clk 0:02:48]} 4. g3
{[%clk 0:02:58.6]} 4... Nf6 {[%clk 0:02:43.7]} 5. Bg2 {[%clk 0:02:57.4]} 5... d5
{[%clk 0:02:31]} 6. d3 {[%clk 0:02:52.5]} 6... d4 {[%clk 0:02:23]} 7. Nce2
{[%clk 0:02:52.1]} 7... e5 {[%clk 0:02:23.6]} 8. h3 {[%clk 0:02:51]} 8... Qa5+
{[%clk 0:02:17.9]} 9. Bd2 {[%clk 0:02:49.2]} 9... Qc7 {[%clk 0:02:16.6]} 10. f4
{[%clk 0:02:47.9]} 10... exf4 {[%clk 0:02:08.5]} 11. gxf4 {[%clk 0:02:47.1]}
11... g6 {[%clk 0:01:55.1]} 12. Nf3 {[%clk 0:02:45.8]} 12... Bg7 {[%clk
0:01:53.8]} 13. a3 {[%clk 0:02:44.6]} 13... a5 {[%clk 0:01:52.6]} 14. O-O {[%clk
0:02:44.5]} 14... b6 {[%clk 0:01:52.1]} 15. Ng3 {[%clk 0:02:17.3]} 15... O-O
{[%clk 0:01:49.2]} 16. e5 {[%clk 0:02:10.7]} 16... Ne8 {[%clk 0:01:47.2]} 17.
Ng5 {[%clk 0:02:08.9]} 17... h6 {[%clk 0:01:41.2]} 18. N5e4 {[%clk 0:01:58.6]}
18... Ra7 {[%clk 0:01:38.8]} 19. Rb1 {[%clk 0:01:48.5]} 19... Ne7 {[%clk
0:01:37.6]} 20. b4 {[%clk 0:01:46.5]} 20... Nf5 {[%clk 0:01:36.3]} 21. Nxf5
{[%clk 0:01:43.7]} 21... Bxf5 {[%clk 0:01:37.2]} 22. bxc5 {[%clk 0:01:41.3]}
22... bxc5 {[%clk 0:01:34.5]} 23. Qe2 {[%clk 0:01:41]} 23... Ra6 {[%clk
0:01:18.9]} 24. Rb7 {[%clk 0:01:35.3]} 24... Qd8 {[%clk 0:01:15.2]} 25. Nxc5
{[%clk 0:01:32.4]} 25... Rb6 {[%clk 0:01:11.8]} 26. Bxa5 {[%clk 0:01:29.4]}
26... Qc8 {[%clk 0:01:04.4]} 27. Bxb6 {[%clk 0:01:27.6]} 27... Bxh3 {[%clk
0:00:36.8]} 28. e6 {[%clk 0:01:21.8]} 28... Bxg2 {[%clk 0:00:36.3]} 29. Qxg2
{[%clk 0:01:16.6]} 29... Nd6 {[%clk 0:00:34.2]} 30. exf7+ {[%clk 0:01:13.4]}
30... Kh7 {[%clk 0:00:33.2]} 31. Rc7 {[%clk 0:01:13]} 31... Qb8 {[%clk
0:00:30.4]} 32. Nd7 {[%clk 0:01:11.3]} 32... Qd8 {[%clk 0:00:24.2]} 33. Nxf8+
{[%clk 0:01:11]} 33... Qxf8 {[%clk 0:00:25.1]} 34. Bc5 {[%clk 0:01:09.9]} 1-0

[Event "Early-Titled-Tuesday-Blitz-March-19-2024"]
[Site "Chess.com"]
[Date "2024.03.19"]
[Round "5"]
[White "Chessmissile07"]
[Black "AlexPapasimakopoulos"]
[Result "0-1"]
[WhiteElo "2933"]
[BlackElo "2757"]
[TimeControl "180+1"]
[EndTime "8:56:04 PDT"]
[Termination "AlexPapasimakopoulos won by checkmate"]

1. a3 {[%clk 0:03:00.9]} 1... d5 {[%clk 0:02:54]} 2. d4 {[%clk 0:02:58.6]} 2...
Bf5 {[%clk 0:02:53.8]} 3. Nf3 {[%clk 0:02:51.3]} 3... e6 {[%clk 0:02:53.7]} 4.
e3 {[%clk 0:02:50.4]} 4... Nf6 {[%clk 0:02:53.8]} 5. c4 {[%clk 0:02:49.7]} 5...
c6 {[%clk 0:02:53.8]} 6. Nc3 {[%clk 0:02:49.8]} 6... Bd6 {[%clk 0:02:52.8]} 7.
Bd3 {[%clk 0:02:49.5]} 7... Bg6 {[%clk 0:02:52.2]} 8. Qe2 {[%clk 0:02:46.8]}
8... Nbd7 {[%clk 0:02:50.1]} 9. e4 {[%clk 0:02:44.1]} 9... dxe4 {[%clk
0:02:48.1]} 10. Nxe4 {[%clk 0:02:45]} 10... Nxe4 {[%clk 0:02:47.5]} 11. Bxe4
{[%clk 0:02:45.9]} 11... Nf6 {[%clk 0:02:35.6]} 12. Bxg6 {[%clk 0:02:38.6]}
12... hxg6 {[%clk 0:02:36.5]} 13. h3 {[%clk 0:02:35.3]} 13... Be7 {[%clk
0:02:26]} 14. O-O {[%clk 0:02:34.8]} 14... O-O {[%clk 0:02:25.8]} 15. Rd1 {[%clk
0:02:31.2]} 15... Qa5 {[%clk 0:02:18.9]} 16. Be3 {[%clk 0:02:27.9]} 16... Rfd8
{[%clk 0:02:18.1]} 17. Qc2 {[%clk 0:02:20.4]} 17... Qf5 {[%clk 0:02:17]} 18.
Qxf5 {[%clk 0:02:20.1]} 18... gxf5 {[%clk 0:02:17.9]} 19. Kf1 {[%clk 0:02:18.3]}
19... Ne4 {[%clk 0:02:10.1]} 20. Nd2 {[%clk 0:01:56.9]} 20... Rd7 {[%clk
0:02:03.9]} 21. f3 {[%clk 0:01:30.1]} 21... Nxd2+ {[%clk 0:01:57.3]} 22. Rxd2
{[%clk 0:01:31]} 22... Rad8 {[%clk 0:01:57.1]} 23. Rad1 {[%clk 0:01:30.4]} 23...
Bf6 {[%clk 0:01:56.2]} 24. Ke2 {[%clk 0:01:27.7]} 24... a6 {[%clk 0:01:55.5]}
25. b3 {[%clk 0:01:22.5]} 25... g5 {[%clk 0:01:55.4]} 26. g4 {[%clk 0:01:06]}
26... f4 {[%clk 0:01:54.9]} 27. Bf2 {[%clk 0:01:06.3]} 27... Kg7 {[%clk
0:01:54.6]} 28. Kd3 {[%clk 0:00:42.4]} 28... Bxd4 {[%clk 0:01:25.4]} 29. Ke4
{[%clk 0:00:41.4]} 29... e5 {[%clk 0:01:25.6]} 30. Bxd4 {[%clk 0:00:41]} 30...
exd4 {[%clk 0:01:25.9]} 31. Rxd4 {[%clk 0:00:40.8]} 31... Re7+ {[%clk
0:01:23.7]} 32. Kf5 {[%clk 0:00:36.2]} 32... f6 {[%clk 0:01:20.5]} 33. Rxd8
{[%clk 0:00:02.8]} 33... Re5# {[%clk 0:01:19.4]} 0-1

[Event "Early-Titled-Tuesday-Blitz-March-19-2024"]
[Site "Chess.com"]
[Date "2024.03.19"]
[Round "5"]
[White "MKlose11"]
[Black "InitiatingASC"]
[Result "1-0"]
[WhiteElo "2595"]
[BlackElo "2359"]
[TimeControl "180+1"]
[EndTime "8:56:08 PDT"]
[Termination "MKlose11 won by resignation"]

1. e4 {[%clk 0:02:56.5]} 1... c5 {[%clk 0:02:59.9]} 2. Nc3 {[%clk 0:02:56.1]}
2... Nf6 {[%clk 0:02:57.7]} 3. g3 {[%clk 0:02:57]} 3... g6 {[%clk 0:02:57.4]} 4.
Bg2 {[%clk 0:02:57.3]} 4... Bg7 {[%clk 0:02:58.1]} 5. d3 {[%clk 0:02:57.7]} 5...
Nc6 {[%clk 0:02:56.9]} 6. h3 {[%clk 0:02:58.1]} 6... d6 {[%clk 0:02:56.8]} 7.
Be3 {[%clk 0:02:58.2]} 7... Rb8 {[%clk 0:02:55.9]} 8. Qd2 {[%clk 0:02:58.1]}
8... b5 {[%clk 0:02:53.6]} 9. Bh6 {[%clk 0:02:57.6]} 9... O-O {[%clk 0:02:50]}
10. Bxg7 {[%clk 0:02:57.1]} 10... Kxg7 {[%clk 0:02:50.4]} 11. Nge2 {[%clk
0:02:57.8]} 11... b4 {[%clk 0:02:48.6]} 12. Nd1 {[%clk 0:02:57.1]} 12... Ne8
{[%clk 0:02:45.3]} 13. O-O {[%clk 0:02:57.2]} 13... Nc7 {[%clk 0:02:45.5]} 14.
Ne3 {[%clk 0:02:56.8]} 14... Ne6 {[%clk 0:02:43]} 15. f4 {[%clk 0:02:56.2]}
15... Ned4 {[%clk 0:02:43.2]} 16. g4 {[%clk 0:02:55]} 16... Nxe2+ {[%clk
0:02:41.9]} 17. Qxe2 {[%clk 0:02:55.2]} 17... Nd4 {[%clk 0:02:42.5]} 18. Qd2
{[%clk 0:02:55.5]} 18... a5 {[%clk 0:02:39.3]} 19. Rf2 {[%clk 0:02:55.3]} 19...
a4 {[%clk 0:02:38.2]} 20. Raf1 {[%clk 0:02:53.8]} 20... Be6 {[%clk 0:02:30.5]}
21. Ra1 {[%clk 0:02:34.8]} 21... f6 {[%clk 0:02:18.5]} 22. f5 {[%clk 0:02:32.3]}
22... Bf7 {[%clk 0:02:18.7]} 23. h4 {[%clk 0:02:30.5]} 23... b3 {[%clk
0:02:02.2]} 24. axb3 {[%clk 0:02:28]} 24... axb3 {[%clk 0:02:00.2]} 25. c3
{[%clk 0:02:28.3]} 25... Nc6 {[%clk 0:01:56]} 26. g5 {[%clk 0:02:24.1]} 26...
Ra8 {[%clk 0:01:47.6]} 27. Rxa8 {[%clk 0:02:21.6]} 27... Qxa8 {[%clk 0:01:47.2]}
28. gxf6+ {[%clk 0:02:22.5]} 28... exf6 {[%clk 0:01:46.6]} 29. fxg6 {[%clk
0:02:23.1]} 29... hxg6 {[%clk 0:01:43.3]} 30. Ng4 {[%clk 0:02:19.9]} 30... Rh8
{[%clk 0:01:27.8]} 31. Qf4 {[%clk 0:02:13.6]} 31... Qd8 {[%clk 0:01:13.7]} 32.
Nxf6 {[%clk 0:02:12.2]} 32... Ne5 {[%clk 0:01:10.7]} 33. Bf1 {[%clk 0:02:01.6]}
33... Be6 {[%clk 0:00:57.7]} 34. d4 {[%clk 0:01:59.3]} 34... cxd4 {[%clk
0:00:19.7]} 35. cxd4 {[%clk 0:02:00.2]} 35... Ng4 {[%clk 0:00:08.8]} 36. Nxg4
{[%clk 0:01:58.3]} 36... Rxh4 {[%clk 0:00:08.4]} 37. Qf6+ {[%clk 0:01:55.8]}
37... Qxf6 {[%clk 0:00:08.4]} 38. Nxf6 {[%clk 0:01:56.7]} 38... d5 {[%clk
0:00:06.6]} 39. exd5 {[%clk 0:01:50.3]} 39... Bf5 {[%clk 0:00:06.4]} 40. Ne8+
{[%clk 0:01:49.5]} 40... Kf8 {[%clk 0:00:05.8]} 41. Nd6 {[%clk 0:01:49.5]} 41...
Rxd4 {[%clk 0:00:05.9]} 42. Nxf5 {[%clk 0:01:49.5]} 42... gxf5 {[%clk
0:00:06.3]} 43. Rxf5+ {[%clk 0:01:50.2]} 43... Ke7 {[%clk 0:00:07.1]} 44. Bg2
{[%clk 0:01:49.7]} 44... Rd1+ {[%clk 0:00:06.3]} 45. Rf1 {[%clk 0:01:49.3]}
45... Rd2 {[%clk 0:00:05.7]} 46. Rf2 {[%clk 0:01:49.7]} 46... Rd1+ {[%clk
0:00:06.1]} 47. Kh2 {[%clk 0:01:50.2]} 47... Kd6 {[%clk 0:00:06.2]} 48. Rf3
{[%clk 0:01:44.9]} 48... Kxd5 {[%clk 0:00:04.6]} 49. Rd3+ {[%clk 0:01:43.5]} 1-0